Workbook

Sheet sheet1
I1: 西暦 | N1: 年 | P1: 月 | R1: 日
B3: 面 談 メ モ
B4: 〔面談メモ専用メールアドレスmendan@scholarship.or.jpに当Excelファイルを添付し | AM4: 入力方法
B5: 提出してください。メールの件名は「面談メモ あなたの大学名 あなたの氏名」としてください。〕 | AM5: 手入力
C6: 大学 | F6: 学部 | I6: 学科 | L6: 年 | N6: 氏名 | S6: 注意：大学名はプルダウンで選択してください。 | U6: =IF(ISBLANK(A6),"●大学名を入力して下さい",IF(ISBLANK(E6),"●学部を入力してください",IF(ISBLANK(H6),"●学科を入力して下さい",IF(NOT(ISNUMBER(K6)),"●学年を入力して下さい",IF(ISBLANK(#REF!),"●氏名を入力して下さい","OK"))))) -> ●大学名を入力して下さい | AM6: 面談メモから式で参照
A7: ① | B7: 今期の履修単位数、前期末までの取得済み単位数を記入して下さい。 | AM7: ドロップダウンメニュー
B8: （注：以下への入力で改行する場合、Windows を使用の場合は "Alt + Enter" を、Mackintosh を使用の場合はCommand + Option + Return キーを押してください。 ） | V8: 入力文字数設定行数 | X8: 元の高さ | Y8: １行あたり高さ | Z8: １行あたり文字数 | AA8: あふれ文字数 | AB8: 追加行数 | AC8: 追加高さ | AD8: 結果高さ | AF8: 保管するフォルダー名 | AG8: フォルダー名参照テーブル
B9: 今期履修単位数： | H9: 履修済単位数： | AD9: 22.25
AD10: 14.25 | AF10: 01 青山学院大学 | AG10: 青山学院大学 | AH10: =SUBSTITUTE(AI10,"大学","") -> 01 青山学院 | AI10: 01 青山学院大学 | AK10: 1
AD11: 14.25 | AG11: 岩手大学 | AH11: =SUBSTITUTE(AI11,"大学","") -> 02 岩手 | AI11: 02 岩手大学 | AK11: 2
A12: ② | B12: ゼミナール・研究室（所属または希望のゼミ・研究室が決まっている場合記入して下さい） | AD12: 14.25 | AG12: 大阪大学 | AH12: 03 大阪 | AI12: 03 大阪大学 | AK12: 3
B13: ゼミ・研究室名、指導教官名 | AD13: 14.25 | AG13: 岡山大学 | AH13: 04 岡山 | AI13: 04 岡山大学 | AK13: 4
V14: =LEN(B14) -> 0 | W14: 1 | X14: =+W14*Y14 -> 14.25 | Y14: 14.25 | Z14: 42 | AA14: =V14-Z14*W14 -> -42 | AB14: =ROUNDUP(IF((+AA14/Z14)<=0,0,AA14/Z14),) -> 0 | AC14: =ROUNDUP(+Y14*AB14,) -> 0 | AD14: =+X14+AC14+5 -> 19.25 | AG14: 小樽商科大学 | AH14: 05 小樽商科 | AI14: 05 小樽商科大学 | AK14: 5
AD15: 8 | AG15: 香川大学 | AH15: 06 香川 | AI15: 06 香川大学 | AK15: 6
B16: テーマ | AD16: 14.25 | AG16: 学習院大学 | AH16: 07 学習院 | AI16: 07 学習院大学 | AK16: 7
V17: =LEN(B17) -> 0 | W17: 2 | X17: =+W17*Y17 -> 28.5 | Y17: 14.25 | Z17: 42 | AA17: =V17-Z17*W17 -> -84 | AB17: =ROUNDUP(IF((+AA17/Z17)<=0,0,AA17/Z17),) -> 0 | AC17: =ROUNDUP(+Y17*AB17,) -> 0 | AD17: =+X17+AC17+8 -> 36.5 | AG17: 鹿児島大学 | AH17: 08 鹿児島 | AI17: 08 鹿児島大学 | AK17: 8
AD18: 14.25 | AG18: 金沢大学 | AH18: 09 金沢 | AI18: 09 金沢大学 | AK18: 9 | AM18: 部活
A19: ③ | B19: 入っている部、クラブ、研究会、その活動状況、目標としていることなど。 | AD19: 14.25 | AG19: 関西大学 | AH19: 10 関西 | AI19: 10 関西大学 | AK19: 10 | AM19: 主たる活動を記入 | AN19: 分類
V20: =LEN(B20) -> 0 | W20: 2 | X20: =+W20*Y20 -> 28.5 | Y20: 14.25 | Z20: 42 | AA20: =V20-Z20*W20 -> -84 | AB20: =ROUNDUP(IF((+AA20/Z20)<=0,0,AA20/Z20),) -> 0 | AC20: =ROUNDUP(+Y20*AB20,) -> 0 | AD20: =+X20+AC20+8 -> 36.5 | AG20: 関西学院大学 | AH20: 11 関西学院 | AI20: 11 関西学院大学 | AK20: 11 | AS20: 0.なし | AT20: 1.体育会 | AU20: 2.サークル | AV20: 3.勉強サークル
AD21: 5 | AG21: 九州大学 | AH21: 12 九州 | AI21: 12 九州大学 | AK21: 12
B22: あなたの役割 | AD22: 14.25 | AG22: 京都大学 | AH22: 13 京都 | AI22: 13 京都大学 | AK22: 13
V23: =LEN(B23) -> 0 | W23: 1 | X23: =+W23*Y23 -> 14.25 | Y23: 14.25 | Z23: 42 | AA23: =V23-Z23*W23 -> -42 | AB23: =ROUNDUP(IF((+AA23/Z23)<=0,0,AA23/Z23),) -> 0 | AC23: =ROUNDUP(+Y23*AB23,) -> 0 | AD23: =+X23+AC23+5 -> 19.25 | AG23: 慶應義塾大学 | AH23: 14 慶應義塾 | AI23: 14 慶應義塾大学 | AK23: 14
AD24: 14.25 | AG24: 工学院大学 | AH24: 15 工学院 | AI24: 15 工学院大学 | AK24: 15
A25: ④ | B25: あなたの座右の銘・生活信条について記述して下さい。 | AD25: 14.25 | AG25: 神戸大学 | AH25: 16 神戸 | AI25: 16 神戸大学 | AK25: 16 | AM25: 座右の銘
V26: =LEN(B26) -> 0 | W26: 2 | X26: =+W26*Y26 -> 28.5 | Y26: 14.25 | Z26: 42 | AA26: =V26-Z26*W26 -> -84 | AB26: =ROUNDUP(IF((+AA26/Z26)<=0,0,AA26/Z26),) -> 0 | AC26: =ROUNDUP(+Y26*AB26,) -> 0 | AD26: =+X26+AC26+8 -> 36.5 | AG26: 国際大学 | AH26: 17 国際 | AI26: 17 国際大学 | AK26: 17
AD27: 14.25 | AG27: 国際基督教大学 | AH27: 18 国際基督教 | AI27: 18 国際基督教大学 | AK27: 18
A28: ⑤ | B28: 卒業後に就職したい業種、企業など （現在の志望でよい）。 | AD28: 14.25 | AG28: 静岡大学 | AH28: 19 静岡 | AI28: 19 静岡大学 | AK28: 19 | AM28: 進路（2つまで記入）
V29: =LEN(B29) -> 0 | W29: 2 | X29: =+W29*Y29 -> 28.5 | Y29: 14.25 | Z29: 42 | AA29: =V29-Z29*W29 -> -84 | AB29: =ROUNDUP(IF((+AA29/Z29)<=0,0,AA29/Z29),) -> 0 | AC29: =ROUNDUP(+Y29*AB29,) -> 0 | AD29: =+X29+AC29+8 -> 36.5 | AG29: 上智大学 | AH29: 20 上智 | AI29: 20 上智大学 | AK29: 20
AD30: 14.25 | AG30: 信州大学 | AH30: 21 信州 | AI30: 21 信州大学 | AK30: 21
A31: ⑥ | B31: 取得を目指して勉強中の資格、興味を持っている資格はありますか。 | AD31: 14.25 | AG31: 成蹊大学 | AH31: 22 成蹊 | AI31: 22 成蹊大学 | AK31: 22 | AM31: 資格（2つまで記入）
B32: 勉強中の資格： | T32: =+IF(D32="","",D32) ->  | AD32: 22.25 | AG32: 西南学院大学 | AH32: 23 西南学院 | AI32: 23 西南学院大学 | AK32: 23
B33: 興味のある資格： | AD33: 22.25 | AG33: 創価大学 | AH33: 24 創価 | AI33: 24 創価大学 | AK33: 24
AD34: 14.25 | AG34: 千葉大学 | AH34: 25 千葉 | AI34: 25 千葉大学 | AK34: 25
A35: ⑦ | B35: 留学する予定はありますか。（具体的な計画がある場合、時期、期間、留学先について記載してください。） | AD35: 14.25 | AG35: 中央大学 | AH35: 26 中央 | AI35: 26 中央大学 | AK35: 26 | AM35: 留学予定あり/なし | AN35: 国名
B36: 留学予定： | E36: 0.留学予定なし | S36: 留学予定はプルダウンメニューから選択 | AD36: 22.25 | AG36: 筑波大学 | AH36: 27 筑波 | AI36: 27 筑波大学 | AK36: 27 | AS36: 0.留学予定なし | AT36: 1.留学予定あり（交換留学） | AU36: 2.留学予定あり（私費留学） | AV36: 3.未定
B37: 具体的な計画： （わかる範囲で） | E37: 時期（ 年 月～ 年 月） 留学先（国： 大学： ） | V37: =LEN(B37) -> 16 | W37: 2 | X37: =+W37*Y37 -> 28.5 | Y37: 14.25 | Z37: 42 | AA37: =V37-Z37*W37 -> -68 | AB37: =ROUNDUP(IF((+AA37/Z37)<=0,0,AA37/Z37),) -> 0 | AC37: =ROUNDUP(+Y37*AB37,) -> 0 | AD37: =+X37+AC37+8 -> 36.5 | AG37: 東京大学 | AH37: 28 東京 | AI37: 28 東京大学 | AK37: 28 | AM37: =+E36 -> 0.留学予定なし | AS37: 1.米国 | AT37: 2.英国 | AU37: 3.フランス | AV37: 4.ドイツ | AW37: 5.イタリア | AX37: 6.その他欧州 | AY37: 7.カナダ | AZ37: 8.中国 | BA37: 9.韓国 | BB37: 10.台湾 | BC37: 11.その他アジア | BD37: 12.その他 | BE37: 13.未定
AD38: 14.25 | AG38: 東京外国語大学 | AH38: 29 東京外国語 | AI38: 29 東京外国語大学 | AK38: 29
A39: ⑧ | B39: 大学院に進学する予定はありますか。進学希望大学、学科は決まっていますか。 | AD39: 14.25 | AG39: 東京工業大学 | AH39: 30 東京工業 | AI39: 30 東京工業大学 | AK39: 30 | AM39: 大学院進学？
B40: 進学予定： | E40: 0.進学予定なし | S40: 進学予定はプルダウンメニューから選択 | AD40: 22.25 | AG40: 東京理科大学 | AH40: 31 東京理科 | AI40: 31 東京理科大学 | AK40: 31 | AS40: 0.進学予定なし | AT40: 1.進学予定あり | AU40: 2.未定
B41: 希望大学、学科： | V41: =LEN(B41) -> 8 | W41: 1 | X41: =+W41*Y41 -> 14.25 | Y41: 14.25 | Z41: 42 | AA41: =V41-Z41*W41 -> -34 | AB41: =ROUNDUP(IF((+AA41/Z41)<=0,0,AA41/Z41),) -> 0 | AC41: =ROUNDUP(+Y41*AB41,) -> 0 | AD41: =+X41+AC41+8 -> 22.25 | AG41: 同志社大学 | AH41: 32 同志社 | AI41: 32 同志社大学 | AK41: 32 | AM41: =+E40 -> 0.進学予定なし | AN41: ←入力値参照
AD42: 5 | AG42: 東北大学 | AH42: 33 東北 | AI42: 33 東北大学 | AK42: 33
A43: ⑨ | B43: 併給している奨学金、学費免除があれば、すべて記入してください。 | AG43: 獨協大学 | AH43: 34 獨協 | AI43: 34 獨協大学 | AK43: 34
B44: 奨学金名称 | J44: 貸与/給付 | N44: 金額（万円/年） | AG44: 長崎大学 | AH44: 35 長崎 | AI44: 35 長崎大学 | AK44: 35
S45: 奨学金名称、貸与/給付はプルダウンメニューから選択。奨学金名称はメニュー以外に手入力も可。 | AD45: 19.25 | AG45: 名古屋大学 | AH45: 36 名古屋 | AI45: 36 名古屋大学 | AK45: 36
AD46: 19.25 | AG46: 南山大学 | AH46: 37 南山 | AI46: 37 南山大学 | AK46: 37 | AS46: 日本学生支援機構(給付) | AT46: 日本学生支援機構(授業料減免) | AU46: 日本学生支援機構１種 | AV46: 日本学生支援機構２種 | AW46: 学費免除（前期） | AX46: 学費免除（後期）
AD47: 19.25 | AG47: 一橋大学 | AH47: 38 一橋 | AI47: 38 一橋大学 | AK47: 38 | AS47: 貸与 | AT47: 給付
AD48: 19.25 | AG48: 広島大学 | AH48: 39 広島 | AI48: 39 広島大学 | AK48: 39
AD49: 19.25 | AG49: 福島大学 | AH49: 40 福島 | AI49: 40 福島大学 | AK49: 40
AD50: 19.25 | AG50: 法政大学 | AH50: 41 法政 | AI50: 41 法政大学 | AK50: 41
AD51: 4 | AG51: 北海道大学 | AH51: 42 北海道 | AI51: 42 北海道大学 | AK51: 42
AG52: 明治大学 | AH52: 43 明治 | AI52: 43 明治大学 | AK52: 43
A53: ⑩ | B53: 奨学金は主に何に使用していますか。 | S53: 奨学金使途はプルダウンメニューから選択。（３つまで選択可） | AD53: 14.25 | AG53: 山梨大学 | AH53: 44 山梨 | AI53: 44 山梨大学 | AK53: 44 | AM53: 奨学金用途？(複数回答可）
B54: 奨学金使途： | V54: =LEN(B54) -> 6 | W54: 1 | X54: =+W54*Y54 -> 14.25 | Y54: 14.25 | Z54: 42 | AA54: =V54-Z54*W54 -> -36 | AB54: =ROUNDUP(IF((+AA54/Z54)<=0,0,AA54/Z54),) -> 0 | AC54: =ROUNDUP(+Y54*AB54,) -> 0 | AD54: =+X54+AC54+8 -> 22.25 | AG54: 横浜国立大学 | AH54: 45 横浜国立 | AI54: 45 横浜国立大学 | AK54: 45 | AM54: =+E54 -> 0 | AN54: ←入力値参照 | AS54: 1.授業料 | AT54: 2.生活費 | AU54: 3.部活費 | AV54: 4.留学費用 | AW54: 5.書籍購入 | AX54: 6.貯蓄 | AY54: 7.旅行 | AZ54: 8.その他
AD55: 14.25 | AG55: 立教大学 | AH55: 46 立教 | AI55: 46 立教大学 | AK55: 46 | AM55: アルバイト職種 | AN55: 週回数 | AO55: 週時間 | AP55: 月収 | AS55: =$E$54&" "&AS54 -> 1.授業料 | AT55: =$E$54&" "&AT54 -> 2.生活費 | AU55: 3.部活費 | AV55: 4.留学費用 | AW55: 5.書籍購入 | AX55: 6.貯蓄 | AY55: 7.旅行 | AZ55: 8.その他
A56: ⑪ | B56: 何かアルバイトをしていますか。（複数ある場合は職種は全てを、回数、時間、月収は合計を記載して下さい。） | AD56: 14.25 | AG56: 立命館大学 | AH56: 47 立命館 | AI56: 47 立命館大学 | AK56: 47 | AM56: （複数回答可） | AN56: （複数の場合は合計）
B57: アルバイト職種： | AD57: 22.25 | AG57: 早稲田大学 | AH57: 48 早稲田 | AI57: 48 早稲田大学 | AK57: 48
B58: 一週間での回数： | F58: 一週あたりの時間： | L58: 平均的な月収： | S58: （万円） | V58: =LEN(E58) -> 0 | W58: 1 | X58: =+W58*Y58 -> 14.25 | Y58: 14.25 | Z58: 42 | AA58: =V58-Z58*W58 -> -42 | AB58: =ROUNDUP(IF((+AA58/Z58)<=0,0,AA58/Z58),) -> 0 | AC58: =ROUNDUP(+Y58*AB58,) -> 0 | AD58: =+X58+AC58+8 -> 22.25 | AN58: =+E58 -> 0 | AO58: =+I58 -> 0 | AP58: =+P58 -> 0 | AS58: 1.塾講師 | AT58: 2.家庭教師 | AU58: 3.飲食店員 | AV58: 4.店員 | AW58: 5.TA | AX58: 6.その他 | AY58: 7.なし
AD59: 14.25 | AS59: =$AM$58&" "&AS58 -> 1.塾講師 | AT59: 2.家庭教師 | AU59: 3.飲食店員 | AV59: 4.店員 | AW59: 5.TA | AX59: 6.その他 | AY59: 7.なし
A60: ⑫ | B60: 当財団の出捐者である三菱UFJ信託銀行についてご存知の事を記載して下さい。 | AD60: 14.25 | AM60: MUTBについて？
S61: 全く知らない場合は同行のHPなどをご覧ください。 | V61: =LEN(B61) -> 0 | W61: 4 | X61: =+W61*Y61 -> 57 | Y61: 14.25 | Z61: 42 | AA61: =V61-Z61*W61 -> -168 | AB61: =ROUNDUP(IF((+AA61/Z61)<=0,0,AA61/Z61),) -> 0 | AC61: =ROUNDUP(+Y61*AB61,) -> 0 | AD61: =+X61+AC61+8 -> 65 | AS61: 0.無回答 | AT61: 1.BOTMと誤認 | AU61: 2.少し知っている | AV61: 3.知っている | AW61: 4.よく知っている
AD62: 14.25
A63: ⑬ | B63: 最近、気になるニュースは何ですか。それはなぜですか。 | AD63: 14.25 | AM63: 気になるニュース？
V64: =LEN(B64) -> 0 | W64: 4 | X64: =+W64*Y64 -> 57 | Y64: 14.25 | Z64: 42 | AA64: =V64-Z64*W64 -> -168 | AB64: =ROUNDUP(IF((+AA64/Z64)<=0,0,AA64/Z64),) -> 0 | AC64: =ROUNDUP(+Y64*AB64,) -> 0 | AD64: =+X64+AC64+8 -> 65 | AM64: 3.社会 | AS64: 1.政治 | AT64: 2.経済 | AU64: 3.社会 | AV64: 4.国際 | AW64: 5.安全保障 | AX64: 6.自然災害 | AY64: 7.スポーツ | AZ64: 8.芸術・文化 | BA64: 9 | BB64: 10.その他
AD65: 14.25
A66: ⑭ | B66: 趣味や余暇の過ごし方についてお書き下さい。 | AD66: 14.25
V67: =LEN(B67) -> 0 | W67: 2 | X67: =+W67*Y67 -> 28.5 | Y67: 14.25 | Z67: 42 | AA67: =V67-Z67*W67 -> -84 | AB67: =ROUNDUP(IF((+AA67/Z67)<=0,0,AA67/Z67),) -> 0 | AC67: =ROUNDUP(+Y67*AB67,) -> 0 | AD67: =+X67+AC67+8 -> 36.5
AD68: 14.25
A69: ⑮ | B69: 近況報告 | AD69: 14.25
B70: 近況又は意見、抱負等ご自由にお書き下さい。 | AD70: 14.25
V71: =LEN(B71) -> 0 | W71: 13 | X71: =+W71*Y71 -> 185.25 | Y71: 14.25 | Z71: 42 | AA71: =V71-Z71*W71 -> -546 | AB71: =ROUNDUP(IF((+AA71/Z71)<=0,0,AA71/Z71),) -> 0 | AC71: =ROUNDUP(+Y71*AB71,) -> 0 | AD71: =+X71+AC71+10 -> 195.25
AD72: 14.25
A73: ⑯ | B73: 何か質問、相談したいことがあればお書き下さい。 | AD73: 14.25
V74: =LEN(B74) -> 0 | W74: 5 | X74: =+W74*Y74 -> 71.25 | Y74: 14.25 | Z74: 42 | AA74: =V74-Z74*W74 -> -210 | AB74: =ROUNDUP(IF((+AA74/Z74)<=0,0,AA74/Z74),) -> 0 | AC74: =ROUNDUP(+Y74*AB74,) -> 0 | AD74: =+X74+AC74+10 -> 81.25
R75: 以上
B77: SMILE入力文
B78: ="先期までの履修単位数は"&K9&"、今期履修単位数は"&E9&"。学業状況は・・・・・・・・。"& "卒業後は"&B29&"を希望。"&+RIGHT(E40,LEN(E40)-2)&"。"& +IF(LEFT(E40,1)="1",E41&"を希望。","")& +IF(LEFT(E36,1)="0","留学予定なし。","")& +IF(LEFT(E36,1)="1",+RIGHT(E36,LEN(E36)-2)&"、"&+CLEAN(TRIM(E37)&"。"),"")& +IF(LEFT(E36,1)="2",+RIGHT(E36,LEN(E36)-2)&"、"&+CLEAN(TRIM(E37)&"。"),"")& +IF(LEFT(E36,1)="3","留学は未定。","")& +IF(E32="","","勉強中の資格は"&E32)&"。"& "サークル活動は"&B20&"。"& +IF(OR(E58=0,E58=""),"アルバイトなし。","アルバイトは"&E57&"。週"&E58&"回、一回"&I58&"時間、月収"&P58&"万円。") -> 先期までの履修単位数は、今期履修単位数は。学業状況は・・・・・・・・。卒業後はを希望。進学予定なし。留学予定なし。。サークル活動は。アルバイトなし。

Sheet システム管理 (hidden)
A1: ディレクトリ名： （事前に手作成しておく） | B1: \\Ridoc-srv\マイドキュメント\１１．面談\面談2024\面談資料 大学別(2024)
A2: 大学フォルダ名： | B2: =+sheet1!A6 & "大学" -> 大学
A3: bookファイル名： | B3: =B2&" 面談メモ（2024)" -> 大学 面談メモ（2024) | C3: 保存するEXCELファイル名は大学の後に”面談メモ（H29)を連結した名前。年度により更新する。
A4: シート名 | B4: =+sheet1!O6 -> 0 | C4: シート名は氏名

Sheet システム管理2 (hidden)
A1: ディレクトリ名： （事前に手作成しておく） | B1: \\Ridoc-srv\マイドキュメント\１１．面談\面談2024 | I1: 大学 | J1: 学部 | K1: 学年 | L1: 氏名 | M1: 部活・サークル | N1: 部活・サークル分類 | O1: 生活信条 | P1: 進路志望1 | Q1: 進路志望2 | R1: 留学希望 | S1: 進学希望 | T1: 取得希望資格1 | U1: 取得希望資格2 | V1: MUTB | W1: 奨学金使途 | X1: 気になるニュース | Y1: アルバイト | Z1: アルバイト週回数 | AA1: アルバイト1回時間 | AB1: アルバイト月収（万円/月） | AC1: 留学希望国 | AD1: 併給奨学金名１ | AE1: 併給貸与給付1 | AF1: 併給奨学金金額1 | AG1: 併給奨学金名2 | AH1: 併給貸与給付2 | AI1: 併給金額2 | AJ1: 併給奨学金名3 | AK1: 併給貸与給付3 | AL1: 併給金額3 | AM1: 併給奨学金名4 | AN1: 併給貸与給付4 | AO1: 併給金額4 | AP1: 併給奨学金名5 | AQ1: 併給貸与給付5 | AR1: 併給金額5
A2: EXCELファイル名： | B2: ★面談メモデータ2024 | H2: 書き込みデータ | I2: =+sheet1!A6 -> 0 | J2: =+sheet1!E6 -> 0 | K2: =+sheet1!K6 -> 0 | L2: =+sheet1!O6 -> 0 | M2: =+sheet1!AM20 -> 0 | N2: =+sheet1!AN20 -> 0 | O2: =+sheet1!AM26 -> 0 | P2: =+sheet1!AM29 -> 0 | Q2: =+sheet1!AN29 -> 0 | R2: =+sheet1!AM37 -> 0.留学予定なし | S2: =+sheet1!AM41 -> 0.進学予定なし | T2: =+sheet1!AM33 -> 0 | U2: =+sheet1!AN33 -> 0 | V2: =+sheet1!AM61 -> 0 | W2: =RIGHT(sheet1!AM54,LEN(sheet1!AM54)-1) ->  | X2: =+sheet1!AM64 & " "&+sheet1!AN64 -> 3.社会 | Y2: =RIGHT(sheet1!AM58,LEN(sheet1!AM58)-1) ->  | Z2: =+sheet1!AN58 -> 0 | AA2: =+sheet1!AO58 -> 0 | AB2: =+sheet1!AP58 -> 0 | AC2: =+sheet1!AN37 -> 0 | AD2: =+sheet1!B46 -> 0 | AE2: =+sheet1!K46 -> 0 | AF2: =+sheet1!O46 -> 0 | AG2: =+sheet1!B47 -> 0 | AH2: =+sheet1!K47 -> 0 | AI2: =+sheet1!O47 -> 0 | AJ2: =+sheet1!B48 -> 0 | AK2: =+sheet1!K48 -> 0 | AL2: =+sheet1!O48 -> 0 | AM2: =+sheet1!B49 -> 0 | AN2: =+sheet1!K49 -> 0 | AO2: =+sheet1!O49 -> 0 | AP2: =+sheet1!B50 -> 0 | AQ2: =+sheet1!K50 -> 0 | AR2: =+sheet1!O50 -> 0
